bitfinex-derivatives/quotes_ETHF0:USTF0_20250712
["timestamp","ask_amount","ask_price","bid_price","bid_amount"]
[1752279393063,24.81008335,2955.7,2955.6,12.3957]
[1752279393366,1.57508335,2955.7,2955.6,12.3957]
[1752279393663,24.81008335,2955.7,2955.6,12.3957]
[1752279394062,28.68918335,2955.7,2955.6,12.3957]
[1752279395558,4.77776335,2955.7,2955.6,12.3957]
[1752279395757,1.21282846,2956.1,2956.0,1.1848]
[1752279395952,1.21282846,2956.2,2956.1,0.9245]
[1752279396161,0.67626,2956.4,2956.3,3.9024]
[1752279396557,1.88908846,2956.4,2956.3,3.9024]
[1752279397057,5.76818846,2956.4,2956.3,3.9024]
[1752279397252,4.55536,2956.4,2956.3,3.9024]
[1752279397459,27.78936,2956.4,2956.3,3.9024]
[1752279399467,1.79835,2956.0,2955.9,7.1102]
[1752279400065,0.67635,2956.0,2955.9,7.1102]
[1752279400264,0.67635,2956.0,2955.9,15.6035]
[1752279400963,1.79835,2956.0,2955.9,15.6035]
[1752279402258,0.67635,2956.0,2955.9,15.6035]
[1752279405067,1.79835,2956.0,2955.9,15.6035]
[1752279405855,2.78565,2956.0,2955.9,15.6035]
[1752279406466,4.40405,2956.0,2955.9,15.6035]
[1752279411366,0.67635,2956.0,2955.9,16.93438961]
[1752279411666,4.40303,2956.5,2956.4,3.8146]
[1752279411866,28.51552944,2956.5,2956.4,3.8146]
[1752279415175,28.51452944,2956.5,2956.4,12.3079]
[1752279415776,1.56672944,2956.5,2956.4,13.63878961]
[1752279415977,0.89049944,2956.5,2956.4,13.63878961]
[1752279416275,0.67623,2956.5,2956.4,13.63878961]
[1752279418174,2.78463,2956.5,2956.4,12.3079]
[1752279418376,4.40303,2956.5,2956.4,12.3079]
[1752279420069,0.67623,2956.5,2956.4,12.3079]
[1752279422473,23.22,2956.6,2956.4,13.63878961]
[1752279422474,0.67623,2956.6,2956.4,13.63878961]
[1752279422773,0.67623,2956.6,2956.5,7.0224]
[1752279423073,0.67619,2956.7,2956.6,3.8146]
[1752279423371,0.89106747,2956.9,2956.8,0.67616]
[1752279423575,1.21282846,2957.4,2957.3,1.76725]
[1752279423772,1.21282846,2957.6,2957.4,1.0912]
[1752279423975,1.88878846,2957.7,2957.6,1.0912]
[1752279424275,1.88878846,2957.7,2957.6,3.8146]
[1752279424276,2.7796159,2957.7,2957.6,3.8146]
[1752279424477,2.68788744,2957.7,2957.6,3.8146]
[1752279425065,1.79706,2957.7,2957.6,3.8146]
[1752279425266,1.79706,2957.7,2957.6,12.3079]
[1752279426078,0.67596,2957.7,2957.6,12.3079]
[1752279426673,2.78436,2957.7,2957.6,12.3079]
[1752279426874,4.40276,2957.7,2957.6,12.3079]
[1752279427680,1.79706,2957.7,2957.6,12.3079]
[1752279428581,1.1211,2957.7,2957.6,13.63878961]
[1752279428779,2.6057,2957.9,2957.6,13.63878961]
[1752279428780,1.6184,2957.9,2957.6,10.91538961]
[1752279429081,0.67591,2957.9,2957.8,5.14548961]
[1752279430176,0.67591,2957.9,2957.8,13.63878961]
[1752279430873,1.68958,2958.3,2957.9,3.8146]
[1752279431081,0.67584,2958.2,2958.1,2.42208961]
[1752279431676,0.67584,2958.2,2958.1,5.14548961]
[1752279432080,1.79694,2958.2,2958.1,5.14548961]
[1752279432373,4.40264,2958.2,2958.1,5.14548961]
[1752279432579,4.40264,2958.2,2958.1,3.8146]
[1752279435285,0.67584,2958.2,2958.1,13.63878961]
[1752279436581,2.72744,2958.2,2958.1,13.63878961]
[1752279436781,1.75354,2958.2,2958.1,13.63878961]
[1752279436985,1.0777,2958.2,2958.1,13.63878961]
[1752279437173,0.67583,2958.3,2958.1,10.91538961]
[1752279437480,4.34983,2958.3,2958.2,2.0606]
[1752279437679,4.34983,2958.3,2958.2,3.8227]
[1752279438386,3.674,2958.3,2958.2,3.8227]
[1752279438579,4.34982,2958.3,2958.2,3.8227]
[1752279438881,4.34978,2958.5,2958.4,2.8934]
[1752279439183,4.34978,2958.5,2958.4,3.8227]
[1752279440184,4.34978,2958.5,2958.4,12.316]
[1752279445581,0.67578,2958.5,2958.4,12.316]
[1752279446682,2.72738,2958.5,2958.4,12.316]
[1752279447588,4.34978,2958.5,2958.4,12.316]
[1752279452287,4.34978,2958.5,2958.4,8.4933]
[1752279452288,5.68066961,2958.5,2958.4,8.4933]
[1752279452888,34.75409428,2958.5,2958.4,4.5966]
[1752279456090,35.96692274,2958.5,2958.4,4.5966]
[1752279457098,35.96692274,2958.5,2955.5,7.8918482]
[1752279457099,0.67607,2957.2,2957.1,2.8934]
[1752279457292,26.16485961,2957.2,2957.1,1.7621]
[1752279457495,26.16485961,2957.2,2956.7,3.2078]
[1752279457496,1.65006,2956.8,2956.7,2.6914]
[1752279457790,24.83406,2956.8,2956.7,3.8227]
[1752279457995,3.2078,2957.1,2956.7,3.8227]
[1752279458194,1.65,2957.1,2957.0,3.8227]
[1752279458392,24.835,2957.1,2957.0,3.8227]
[1752279460197,24.835,2957.1,2957.0,12.316]
[1752279460396,24.834,2957.1,2957.0,10.2554]
[1752279460597,24.834,2957.1,2957.0,8.4933]
[1752279460793,24.834,2957.1,2957.0,10.2554]
[1752279461605,25.72363173,2957.1,2957.0,10.2554]
[1752279462200,25.72363173,2957.1,2957.0,11.3867]
[1752279463297,1.56573173,2957.1,2957.0,12.316]
[1752279463494,3.2078,2957.4,2957.0,16.88478961]
[1752279463698,3.88383,2957.4,2957.3,5.03818961]
[1752279463895,4.77212644,2957.4,2957.3,5.03818961]
[1752279464498,0.67603,2957.4,2957.3,5.03818961]
[1752279464699,0.67602,2957.5,2957.3,2.46218961]
[1752279464906,0.67602,2957.5,2957.4,3.7485]
[1752279465400,0.67602,2957.5,2957.4,12.2418]
[1752279468104,0.67594,2957.8,2957.7,3.7677]
[1752279468301,23.86294,2957.8,2957.7,5.09858961]
[1752279468703,1.68966,2958.2,2958.0,1.1725]
[1752279468906,3.2078,2958.3,2958.0,3.45188961]
[1752279468907,0.67587,2958.1,2958.0,3.45188961]
[1752279469095,0.67587,2958.1,2958.0,6.65968961]
[1752279469608,0.67587,2958.1,2958.0,8.30638961]
[1752279470210,0.67587,2958.1,2958.0,16.79968961]
[1752279471706,0.67587,2958.1,2958.0,15.4688]
[1752279472511,1.76457,2958.1,2958.0,15.4688]
[1752279472707,3.09545961,2958.1,2958.0,14.5203]
[1752279473011,3.19705961,2958.1,2958.0,8.4933]
[1752279473513,6.40485961,2958.1,2958.0,8.4933]
[1752279474813,5.07397,2958.1,2958.0,8.4933]
[1752279475321,28.15537,2958.1,2958.0,12.261]
[1752279475622,4.8131,2958.4,2958.3,1.1725]
[1752279475814,28.1543,2958.4,2958.3,2.121]
[1752279476118,28.1543,2958.4,2958.3,3.7677]
[1752279476319,24.9465,2958.4,2958.3,3.7677]
[1752279477018,25.0481,2958.4,2958.3,1.6467]
[1752279477318,1.76457,2958.1,2958.0,12.261]
[1752279478516,24.94657,2958.1,2958.0,12.261]
[1752279478717,35.91178096,2958.1,2958.0,8.4933]
[1752279478917,36.80023652,2958.1,2958.0,8.4933]
[1752279480118,36.80023652,2958.1,2958.0,8.3917]
[1752279481524,36.80023652,2958.1,2958.0,7.6877]
[1752279481723,36.80023652,2958.1,2958.0,6.9175]
[1752279482418,36.80023652,2958.1,2958.0,6.00616]
[1752279482623,36.80023652,2958.1,2958.0,5.00047]
[1752279482922,38.01417252,2958.1,2958.0,3.17663]
[1752279483124,36.80023652,2958.1,2958.0,2.38531]
[1752279483320,38.01417252,2958.1,2958.0,2.38531]
[1752279483723,29.14442556,2958.1,2958.0,2.38531]
[1752279483928,5.86082556,2958.1,2958.0,6.15301]
[1752279484121,29.04182556,2958.1,2958.0,6.15301]
[1752279484416,29.04182556,2958.1,2958.0,4.03201]
[1752279487534,29.04182556,2958.1,2958.0,5.20451]
[1752279487723,29.04182556,2958.1,2958.0,6.15301]
[1752279489220,25.83402556,2958.1,2958.0,5.20451]
[1752279489526,2.65302556,2958.1,2958.0,6.15301]
[1752279489726,25.83402556,2958.1,2958.0,6.15301]
[1752279490024,2.65302556,2958.1,2958.0,6.15301]
[1752279490420,25.83402556,2958.1,2958.0,6.15301]
[1752279490829,29.04182556,2958.1,2958.0,2.38531]
[1752279491623,29.04182556,2958.1,2958.0,1.7017]
[1752279492731,29.04182556,2958.1,2958.0,4.5209]
[1752279492927,29.04182556,2958.1,2958.0,0.71741]
[1752279493227,1.6056,2957.1,2957.0,3.2078]
[1752279493425,24.7866,2957.1,2957.0,2.9997]
[1752279494728,28.92846998,2957.1,2957.0,1.8272]
[1752279494923,30.2573622,2957.1,2957.0,1.8272]
[1752279497530,30.2573622,2957.1,2957.0,3.9976]
[1752279497726,30.2573622,2957.1,2957.0,5.32649222]
[1752279497727,4.09806998,2957.1,2957.0,5.32649222]
[1752279497932,23.4605,2957.3,2957.2,1.1778]
[1752279498123,24.13655,2957.3,2957.2,3.9976]
[1752279498326,23.87405,2957.3,2957.2,3.9976]
[1752279499429,23.198,2957.3,2957.2,3.9976]
[1752279499733,23.87405,2957.3,2957.2,3.9976]
[1752279500630,0.67612,2957.0,2956.9,0.9926]
[1752279500926,0.67612,2957.0,2953.3,33.84745]
[1752279500927,1.1673,2956.6,2955.8,6.2258267]
[1752279501139,1.84367,2955.9,2955.8,4.1958267]
[1752279501330,1.84367,2955.9,2955.8,3.005]
[1752279501331,25.96367,2955.9,2955.8,3.005]
[1752279507340,2.74367,2955.9,2955.8,3.9976]
[1752279507639,25.96767,2955.9,2955.8,3.9976]
[1752279508633,25.96767,2955.9,2955.8,3.005]
[1752279508838,0.9,2955.9,2955.8,3.9976]
[1752279509141,24.79837,2955.9,2955.8,3.9976]
[1752279510341,25.96567,2955.9,2955.8,3.005]
[1752279510741,26.77127,2955.9,2955.8,3.005]
[1752279511143,26.77127,2955.9,2955.8,1.8272]
[1752279511358,1.84374,2955.6,2955.5,3.9976]
[1752279511538,25.96774,2955.6,2955.5,3.9976]
[1752279514472,25.96774,2955.6,2955.5,3.005]
[1752279514473,26.77334,2955.6,2955.5,3.005]
[1752279514641,25.96774,2955.6,2955.5,3.005]
[1752279515342,0.67635,2956.0,2955.6,3.49623]
[1752279515538,23.233,2955.9,2955.8,3.9976]
[1752279515742,24.80937,2955.9,2955.8,3.9976]
[1752279515944,25.97667,2955.9,2955.8,3.9976]
[1752279517645,25.97667,2955.9,2955.8,3.005]
[1752279517851,0.67648,2955.4,2955.3,3.9976]
[1752279518048,24.80448,2955.4,2955.3,3.9976]
[1752279518446,25.97178,2955.4,2955.3,3.9976]
[1752279521351,25.97178,2955.4,2955.3,3.005]
[1752279521763,25.97178,2955.4,2955.3,3.9976]
[1752279523754,23.89448,2955.4,2955.3,3.9976]
[1752279524153,23.89548,2955.4,2955.3,3.9976]
[1752279524649,0.2626,2955.5,2955.3,3.9976]
[1752279524650,0.2626,2955.5,2955.4,1.66908]
[1752279524855,23.4816,2955.5,2955.4,3.9711]
[1752279525045,24.15806,2955.5,2955.4,3.9711]
[1752279525550,24.15806,2955.5,2955.4,4.64758]
[1752279525750,0.2626,2955.5,2955.4,4.64758]
[1752279525943,3.2078,2956.3,2955.9,1.8309]
[1752279526142,0.67628,2956.3,2956.2,7.0883]
[1752279526450,0.67628,2956.3,2956.2,3.8805]
[1752279528443,1.56501663,2956.3,2956.2,3.8805]
[1752279528854,2.55321663,2956.3,2956.2,3.8805]
[1752279530456,3.71051663,2956.3,2956.2,3.8805]
[1752279532254,4.92445263,2956.3,2956.2,3.8805]
[1752279533458,3.71051663,2956.3,2956.2,3.8805]
[1752279535160,2.82178,2956.3,2956.2,3.8805]
[1752279535756,0.67627,2956.4,2956.2,3.8805]
[1752279535958,0.67628,2956.3,2956.2,2.9785]
[1752279536452,0.67628,2956.3,2956.2,3.8805]
[1752279537260,0.67628,2956.3,2956.2,7.0883]
[1752279538120,1.66448,2956.3,2956.2,3.8805]
[1752279540057,0.67628,2956.3,2956.2,3.8805]
[1752279540458,1.66448,2956.3,2956.2,3.8805]
[1752279543666,23.87128,2956.4,2956.3,3.8805]
[1752279544763,26.01678,2956.4,2956.3,3.8805]
[1752279547761,26.01678,2956.4,2956.3,1.8309]
[1752279547762,27.05938,2956.4,2956.3,1.8309]
[1752279547965,3.86442,2956.1,2956.0,1.8309]
[1752279548167,27.05942,2956.1,2956.0,2.9785]
[1752279548367,26.01682,2956.1,2956.0,2.9785]
[1752279550476,26.01582,2956.1,2956.0,2.9785]
[1752279550675,26.01582,2956.1,2956.0,3.8805]
[1752279552277,26.90675792,2956.1,2956.0,3.8805]
[1752279552573,2.82182,2956.1,2956.0,3.8805]
[1752279552775,26.01682,2956.1,2956.0,3.8805]
[1752279553768,26.90804066,2956.1,2956.0,3.8805]
[1752279555173,26.90804066,2956.1,2956.0,2.9785]
[1752279556272,1.80992,2955.7,2955.6,7.0401]
[1752279556483,25.96992,2955.7,2955.6,7.0401]
[1752279556978,24.83642,2955.7,2955.6,7.0401]
[1752279557680,23.87142,2955.7,2955.6,7.0401]
[1752279557879,25.96992,2955.7,2955.6,7.0401]
[1752279558079,26.95392,2955.7,2955.6,6.0846]
[1752279558883,26.95392,2955.7,2955.3,2.8768]
[1752279558884,3.75898,2955.4,2955.3,2.8768]
[1752279559085,26.95398,2955.4,2955.3,1.6852]
[1752279559380,1.81005,2955.1,2955.0,2.8768]
[1752279559571,26.95305,2955.1,2955.0,2.8768]
[1752279560880,25.96905,2955.1,2955.0,2.8768]
[1752279562579,23.197,2955.1,2955.0,5.16138852]
[1752279563485,2.0985,2955.6,2955.5,1.1916]
[1752279563684,26.86287197,2955.6,2955.5,3.8323]
[1752279564784,3.2078,2955.9,2955.5,2.52068852]
[1752279564984,0.67642,2955.7,2955.6,2.6407]
[1752279565180,2.53208755,2955.7,2955.6,3.8323]
[1752279566085,3.66558755,2955.7,2955.6,3.8323]
[1752279566581,3.66535533,2955.7,2955.6,3.8323]
[1752279566887,0.67642,2955.7,2955.6,3.8323]
[1752279567085,23.87342,2955.7,2955.6,3.8323]
[1752279571487,24.83842,2955.7,2955.6,3.8323]
[1752279572584,25.97192,2955.7,2955.6,3.8323]
[1752279573093,1.64135,2956.0,2955.9,3.8323]
[1752279573288,25.72807476,2956.0,2955.9,3.8323]
[1752279574397,1.81003,2955.2,2955.1,2.8768]
[1752279574585,28.26121852,2955.2,2955.1,1.6852]
[1752279574890,28.26121852,2955.2,2955.1,2.8768]
[1752279575092,26.93213,2955.2,2955.1,2.8768]
[1752279575589,26.93213,2955.2,2955.1,1.6852]
[1752279576089,26.93213,2955.2,2955.1,2.8768]
[1752279577989,25.97103,2955.2,2955.1,3.8323]
[1752279578287,0.67646,2955.5,2955.4,3.8323]
[1752279578486,24.76360129,2955.5,2955.4,3.8323]
[1752279578690,25.72860129,2955.5,2955.4,3.8323]
[1752279580495,26.86210129,2955.5,2955.4,3.8323]
[1752279581589,24.76360129,2955.5,2955.4,3.8323]
[1752279581896,26.86210129,2955.5,2955.4,3.8323]
[1752279585997,27.78400129,2955.5,2955.4,2.8053]
[1752279586200,29.11308981,2955.5,2955.4,1.6852]
[1752279586895,2.71095,2955.1,2955.0,6.0189]
[1752279587093,25.90595,2955.1,2955.0,6.0189]
[1752279587398,25.90595,2955.1,2955.0,6.9613]
[1752279592802,25.90595,2955.1,2955.0,6.0189]
[1752279594402,25.90595,2955.1,2955.0,2.8111]
[1752279594403,26.82785,2955.1,2955.0,2.8111]
[1752279594603,25.90595,2955.1,2955.0,2.8111]
[1752279595099,25.90595,2955.1,2955.0,1.691]
[1752279595100,26.82785,2955.1,2955.0,1.691]
[1752279596604,26.82785,2955.1,2955.0,2.8111]
[1752279597000,25.90595,2955.1,2955.0,2.8111]
[1752279597502,26.82785,2955.1,2955.0,2.8111]
[1752279603403,28.15693852,2955.1,2955.0,2.8111]
[1752279603605,0.67671,2954.4,2954.3,5.2703]
[1752279603810,25.90611,2954.4,2954.3,6.0189]
[1752279604009,25.90611,2954.4,2954.3,6.9613]
[1752279604210,24.77331,2954.4,2954.3,6.9613]
[1752279604708,23.87171,2954.4,2954.3,6.9613]
[1752279605708,24.77331,2954.4,2954.3,6.9613]
[1752279606514,1.57831,2954.4,2954.3,6.9613]
[1752279607317,0.67671,2954.4,2954.3,6.9613]
[1752279607608,1.57831,2954.4,2954.3,6.9613]
[1752279609506,0.67661,2954.9,2954.7,1.1201]
[1752279609710,0.67653,2955.3,2955.1,1.1201]
[1752279609910,3.02339483,2955.5,2955.4,3.7535]
[1752279610111,25.89418558,2955.5,2955.4,3.7535]
[1752279610312,26.79578558,2955.5,2955.4,3.7535]
[1752279611612,25.90586,2955.5,2955.4,3.7535]
[1752279611813,0.67645,2955.6,2955.4,1.1201]
[1752279612019,23.87246,2955.5,2955.4,3.7535]
[1752279613216,24.77406,2955.5,2955.4,3.7535]
[1752279615315,28.04824852,2955.5,2955.4,2.8111]
[1752279616013,1.76071,2955.3,2955.2,4.8726]
[1752279616214,1.76075,2955.1,2955.0,2.8116]
[1752279616414,25.85505,2955.1,2955.0,2.8116]
[1752279616813,27.18413852,2955.1,2955.0,2.8116]
[1752279617216,28.04503852,2955.1,2955.0,2.8116]
[1752279619116,1.57697,2954.6,2954.5,6.9585]
[1752279619316,0.9003,2954.6,2954.5,6.9585]
[1752279619818,0.67666,2954.7,2954.5,4.3546]
[1752279620021,1.57696,2954.7,2954.6,3.7507]
[1752279620216,2.66116,2954.7,2954.6,3.7507]
[1752279621622,0.67664,2954.7,2954.6,5.07978852]
[1752279625625,0.67664,2954.7,2954.6,3.7507]
[1752279626629,1.57694,2954.7,2954.6,3.7507]
[1752279627222,2.66114,2954.7,2954.6,3.7507]
[1752279627428,2.66114,2954.7,2954.6,2.8116]
[1752279627628,2.66114,2954.7,2954.6,3.7507]
[1752279629129,25.85314,2954.7,2954.6,3.7507]
[1752279632630,25.85214,2954.7,2954.6,3.7507]
[1752279634135,1.57694,2954.7,2954.6,3.7507]
[1752279634433,24.76794,2954.7,2954.6,3.7507]
[1752279634836,1.57694,2954.7,2954.6,3.7507]
[1752279635032,0.9003,2954.9,2954.6,3.7507]
[1752279635238,1.57685,2955.1,2955.0,3.7507]
[1752279635439,1.56661938,2955.1,2955.0,3.7507]
[1752279635631,0.89006938,2955.1,2955.0,4.42728]
[1752279635831,1.56661938,2955.1,2955.0,4.42728]
[1752279636030,0.89006938,2955.1,2955.0,5.75636852]
[1752279636441,3.19782321,2955.7,2955.6,1.1468]
[1752279636739,25.65704335,2955.7,2955.6,5.07978852]
[1752279637539,26.74124335,2955.7,2955.6,5.07978852]
[1752279637843,26.74124335,2955.7,2955.6,3.7507]
[1752279639345,27.95456656,2955.7,2955.6,3.7507]
[1752279640940,27.95456656,2955.7,2955.1,3.2078]
[1752279640941,1.0842,2955.2,2955.1,6.9585]
[1752279641145,3.55195015,2955.2,2955.1,6.9585]
[1752279641343,0.9003,2955.2,2955.1,8.96413852]
[1752279641638,4.53688852,2955.9,2955.1,8.96413852]
[1752279641639,0.9003,2955.4,2955.2,1.1468]
[1752279641845,24.0873,2955.6,2955.5,3.7507]
[1752279642145,24.76374,2955.6,2955.5,3.7507]
[1752279642740,0.9003,2955.8,2955.6,0.9391]
[1752279642943,1.5767,2955.8,2955.7,5.07978852]
[1752279643140,25.65451393,2955.8,2955.7,5.07978852]
[1752279643341,26.73871393,2955.8,2955.7,3.7507]
[1752279646143,3.55171393,2955.8,2955.7,3.7507]
[1752279646344,25.8459,2955.8,2955.7,3.7507]
[1752279647144,26.73659207,2955.8,2955.7,3.7507]
[1752279647344,25.8459,2955.8,2955.7,3.7507]
[1752279649645,26.73599675,2955.8,2955.7,2.8116]
[1752279650448,26.73599675,2955.8,2955.4,5.8159]
[1752279650449,1.72096,2955.5,2955.4,5.8159]
[1752279650643,2.62473,2955.2,2955.1,5.8159]
[1752279650844,3.42573,2955.2,2955.1,2.6081]
[1752279651041,4.75481852,2955.2,2955.1,1.5523]
[1752279651240,3.42573,2955.2,2955.1,2.6081]
[1752279653547,2.62473,2955.2,2955.1,3.5419]
[1752279654249,2.62473,2955.2,2955.1,2.6081]
[1752279655459,25.80673,2955.2,2955.1,2.6081]
[1752279656451,26.60773,2955.2,2955.1,2.6081]
[1752279656957,25.80673,2955.2,2955.1,2.6081]
[1752279657252,23.85853,2955.3,2955.2,2.4861]
[1752279657452,23.85853,2955.3,2955.2,1.9896]
[1752279657657,0.67653,2955.3,2955.2,3.5419]
[1752279658549,1.58023,2955.3,2955.2,3.5419]
[1752279658750,1.58023,2955.3,2954.7,3.2078]
[1752279658751,2.62478,2955.0,2954.9,3.5419]
[1752279658958,25.80578,2955.0,2954.9,3.5419]
[1752279662156,26.60678,2955.0,2954.9,1.5523]
[1752279662360,2.62484,2954.7,2954.6,3.5419]
[1752279662560,2.62484,2954.7,2954.6,2.6081]
[1752279662756,2.62484,2954.7,2954.6,3.5419]
[1752279662757,1.58034,2954.7,2954.6,3.5419]
[1752279663059,0.67664,2954.7,2954.6,3.5419]
[1752279664464,1.58034,2954.7,2954.6,3.5419]
[1752279664858,0.67664,2954.7,2954.6,3.5419]
[1752279665752,0.9037,2955.1,2954.6,2.6081]
[1752279665957,23.85755,2955.1,2955.0,4.87098852]
[1752279666261,0.67655,2955.1,2955.0,4.87098852]
[1752279666462,1.58025,2955.1,2955.0,4.87098852]
[1752279666660,2.62475,2955.1,2955.0,4.87098852]
[1752279666867,2.62475,2955.1,2955.0,3.5419]
[1752279668257,2.62475,2955.1,2955.0,2.6081]
[1752279669564,3.42575,2955.1,2955.0,2.6081]
[1752279670058,2.62475,2955.1,2955.0,2.6081]
[1752279670764,1.58025,2955.1,2955.0,4.87098852]
[1752279670960,0.67655,2955.1,2955.0,4.87098852]
[1752279671261,1.58025,2955.1,2955.0,4.87098852]
[1752279671665,1.58025,2955.1,2955.0,3.5419]
[1752279671666,2.62475,2955.1,2955.0,3.5419]
[1752279672664,1.58025,2955.1,2955.0,3.5419]
[1752279673263,0.67655,2955.1,2955.0,3.5419]
[1752279673462,0.67655,2955.1,2955.0,2.5957]
[1752279673688,0.67655,2955.1,2955.0,3.92478852]
[1752279674062,0.67655,2955.1,2955.0,4.85858852]
[1752279675168,1.58025,2955.1,2955.0,4.85858852]
[1752279675363,2.62475,2955.1,2955.0,4.85858852]
[1752279675568,2.62475,2955.1,2955.0,3.5295]
[1752279676565,1.58025,2955.1,2955.0,3.5295]
[1752279676776,0.67655,2955.1,2955.0,4.85858852]
[1752279677869,1.59006,2955.5,2955.4,3.6277]
[1752279678064,26.70580737,2955.5,2955.4,4.95678852]
[1752279679668,26.70580737,2955.5,2955.4,3.6277]
[1752279680772,26.70580737,2955.5,2955.4,4.95678852]
[1752279683373,25.66130737,2955.5,2955.4,4.95678852]
[1752279683574,1.56770737,2955.5,2955.4,4.95678852]
[1752279683870,4.42112321,2955.9,2955.4,4.95678852]
[1752279683871,3.88417,2955.9,2955.8,1.1103]
[1752279684077,0.67637,2955.9,2955.8,8.16458852]
[1752279684275,1.58997,2955.9,2955.8,8.16458852]
[1752279686873,24.0916,2956.1,2955.8,8.16458852]
[1752279687086,24.76792,2956.1,2956.0,3.97928852]
[1752279687275,1.58992,2956.1,2956.0,4.95678852]
[1752279687678,3.2078,2956.3,2956.0,4.95678852]
[1752279687878,29.01718,2956.3,2956.2,4.95678852]
[1752279689778,5.84218,2956.3,2956.2,4.95678852]
[1752279689978,29.01618,2956.3,2956.2,4.95678852]
[1752279690180,29.01518,2956.3,2956.2,4.95678852]
[1752279690682,28.3389,2956.3,2956.2,4.95678852]
[1752279690877,24.76288,2956.3,2956.2,4.95678852]
[1752279691082,1.58988,2956.3,2956.2,4.95678852]
[1752279691984,2.63438,2956.3,2956.2,4.95678852]
[1752279695285,3.34928,2956.3,2956.2,2.6502]
[1752279695987,2.63438,2956.3,2956.2,2.6502]
[1752279696183,2.63438,2956.3,2956.2,3.6277]
[1752279697289,2.63438,2956.3,2956.2,4.95678852]
[1752279701989,3.2078,2956.6,2956.2,4.95678852]
[1752279702190,0.67628,2956.3,2956.2,3.6277]
[1752279702794,0.67628,2956.3,2956.2,6.8355]
[1752279703297,1.58988,2956.3,2956.2,8.16458852]
[1752279705993,2.60908,2956.3,2956.2,8.16458852]
[1752279706392,2.60908,2956.3,2956.2,5.858]
[1752279706894,2.60908,2956.3,2956.2,6.8409]
[1752279707094,2.60908,2956.3,2956.2,8.16998852]
[1752279708191,0.9136,2956.3,2956.2,8.84628852]
[1752279708397,0.67628,2956.3,2956.2,5.64718852]
[1752279708593,0.67628,2956.3,2956.2,7.17558852]
[1752279708793,0.934,2956.4,2956.2,5.64718852]
[1752279708995,1.61026,2956.4,2956.3,3.5265]
[1752279709995,2.62946,2956.4,2956.3,3.5265]
[1752279711199,1.61026,2956.4,2956.3,3.5265]
[1752279711797,0.6995,2956.8,2956.3,1.9981]
[1752279712099,26.67411776,2956.7,2956.6,2.5436]
[1752279712290,26.67411776,2956.7,2956.6,3.5265]
[1752279712499,26.67411776,2956.7,2956.6,2.5436]
[1752279713302,26.67411776,2956.7,2956.6,3.87268852]
[1752279713801,26.67411776,2956.7,2956.6,2.5436]
[1752279713993,1.81572776,2956.7,2956.6,4.85558852]
[1752279714297,2.49191776,2956.7,2956.6,4.85558852]
[1752279714494,3.51111776,2956.7,2956.6,4.85558852]
[1752279716198,3.32889,2956.7,2956.6,1.5284]
[1752279716398,2.62948,2956.3,2956.2,5.7514]
[1752279716695,2.62948,2956.3,2956.2,2.5436]
[1752279717297,3.32898,2956.3,2956.2,2.5436]
[1752279717600,1.69555,2956.0,2955.9,4.223]
[1752279717803,2.62955,2956.0,2955.9,5.7514]
[1752279719400,0.67642,2955.7,2955.6,4.223]
[1752279719611,3.32912,2955.7,2955.6,5.7514]
[1752279719905,3.32912,2955.7,2955.6,4.7362]
[1752279720495,8.32912,2955.7,2955.6,2.31655263]
[1752279720694,1.69573,2955.2,2955.1,5.57932587]
[1752279720898,26.48823,2955.2,2955.1,3.87268852]
[1752279721099,25.78873,2955.2,2955.1,3.87268852]
[1752279721594,25.78873,2955.2,2955.1,4.85558852]
[1752279722102,1.61044,2955.6,2955.5,3.5265]
[1752279722315,2.62964,2955.6,2955.5,4.85558852]
[1752279722506,2.62964,2955.6,2955.5,3.87268852]
[1752279722701,3.32914,2955.6,2955.5,3.87268852]
[1752279723403,3.32914,2955.6,2955.5,2.5436]
[1752279723902,3.32914,2955.6,2955.5,3.87268852]
[1752279727805,4.21031323,2955.6,2955.5,3.87268852]
[1752279729009,3.32918,2955.4,2955.3,2.85748852]
[1752279729305,3.32918,2955.4,2955.3,1.32908852]
[1752279729507,3.32918,2955.4,2955.3,2.85748852]
[1752279730306,3.32918,2955.4,2955.3,1.32908852]
[1752279730707,24.77548,2955.4,2955.3,4.85558852]
[1752279731109,25.79468,2955.4,2955.3,4.85558852]
[1752279731906,25.79468,2955.4,2955.3,3.87268852]
[1752279732107,26.49418,2955.4,2955.3,3.87268852]
[1752279732604,3.32923,2955.2,2955.1,1.5284]
[1752279732808,25.8177,2955.2,2954.9,1.32908852]
[1752279733107,2.62978,2955.0,2954.9,3.87268852]
[1752279733310,25.79478,2955.0,2954.9,3.87268852]
[1752279735214,26.45248,2955.0,2954.9,3.87268852]
[1752279735509,25.79478,2955.0,2954.9,4.85668852]
[1752279738114,25.79478,2955.0,2954.9,2.34428852]
[1752279738115,23.167,2955.0,2954.9,2.34428852]
[1752279738415,1.58418,2955.0,2954.9,4.81798852]
[1752279742723,1.58418,2955.0,2954.9,5.49458852]
[1752279742921,1.58418,2955.0,2954.9,4.81798852]
[1752279745214,0.9076,2955.2,2955.1,4.23505]
[1752279745426,24.75113,2955.2,2955.1,8.09538852]
[1752279745626,1.58413,2955.2,2955.1,4.88758852]
[1752279749428,26.45803,2955.2,2955.1,1.4897]
[1752279750822,1.72578,2955.0,2954.9,2.41388852]
[1752279751031,25.80038,2955.0,2954.9,3.90358852]
[1752279751924,26.45808,2955.0,2954.9,3.90358852]
[1752279752723,3.29112,2954.8,2954.7,1.4897]
[1752279752925,26.45812,2954.8,2954.7,1.4897]
[1752279753325,1.72587,2954.6,2954.5,1.0848]
[1752279753625,26.45817,2954.6,2954.5,1.0848]
[1752279753827,26.45817,2954.6,2954.5,2.5745]